Cogmind - Beta 9 @@@ ROGUE MODE // 2019.10.26 @ 20:50:16 Player: Gammalost Result: Smashed by cave-in Performance ------------- Evolutions (0) 0 Regions Visited (4) 800 Robots Destroyed (13) 65 Value Destroyed (153) 153 Prototype IDs (0) 0 Alien Tech Used (0) 0 Bonus (0) 0 TOTAL SCORE: 1018 Bonus ------- None Cogmind --------- Core Integrity 0/250 Matter 278/300 Energy 243/250 System Corruption 7% Temperature Cool (20) Location -9/Mines Parts ------- Power (1) Ion Engine Propulsion (2) Aluminum Leg Utility (2) Weapon (2) EM Pulse Gun Inventory (4) Light Ion Engine Aluminum Leg Aluminum Leg Light Assault Rifle Peak State ------------ Power Ion Engine Propulsion Aluminum Leg Aluminum Leg Utility Small Storage Unit Light Armor Plating Weapon Light Assault Rifle Rocket Launcher Inventory Light Ion Engine Aluminum Leg Aluminum Leg EM Pulse Gun Light Assault Rifle [Rating: 8] Favorites ----------- Power Ion Engine Engine Ion Engine Propulsion Aluminum Leg Leg Aluminum Leg Utility Small Storage Unit Storage Small Storage Unit Protection Light Armor Plating Weapon Light Assault Rifle Energy Gun EM Pulse Gun Ballistic Gun Light Assault Rifle Launcher Rocket Launcher Build | -11 -10 -10 -10 -9 ------- Run | Scr Mat Min Exi Min Slots Evolved . | . . . . . Power . | . . . . . Propulsion . | . . . . . Utility . | . . . . . Weapon . | . . . . . Parts Attached 16 | 6 3 1 3 3 Power 2 | 1 . . 1 . Engine 2 | 1 . . 1 . Core . | . . . . . Reactor . | . . . . . Propulsion 3 | 2 . . . 1 Treads . | . . . . . Leg 3 | 2 . . . 1 Wheel . | . . . . . Hover . | . . . . . Flight . | . . . . . Utility 5 | 1 2 . 2 . Device . | . . . . . Storage 4 | 1 1 . 2 . Processor . | . . . . . Hackware . | . . . . . Protection 1 | . 1 . . . Artifact . | . . . . . Weapon 6 | 2 1 1 . 2 Energy Gun 1 | . . . . 1 Energy Cannon . | . . . . . Ballistic Gun 4 | 2 1 1 . . Ballistic Cannon . | . . . . . Launcher 1 | . . . . 1 Special Weapon . | . . . . . Impact Weapon . | . . . . . Slashing Weapon . | . . . . . Piercing Weapon . | . . . . . Special Melee Weapon . | . . . . . Unidentified Prototypes . | . . . . . Parts Lost 6 | . . . . 6 Power . | . . . . . Propulsion 1 | . . . . 1 Utility 2 | . . . . 2 Weapon 3 | . . . . 3 Highest Loss Streak 6 | . . . . 6 Average Slot Usage (%) 98 | . 95 100 99 98 Engine 13 | . 14 14 13 14 Leg 27 | . 28 28 28 27 Storage 14 | . 15 14 14 14 Protection 13 | . 8 14 14 14 Ballistic Gun 27 | . 28 28 28 27 Naked Turns . | . . . . . Heaviest Build 27 | 12 16 15 27 15 Greatest Support 20 | 20 20 20 20 20 Greatest Overweight (x) 1 | . . . 1 . Average Overweight (x) . | . . . . . Largest Inventory Capacity 10 | 6 8 6 10 6 Average Capacity 6 | 5 6 6 6 6 Most Carried 7 | 6 7 6 6 6 Average Carried 5 | 4 6 6 5 5 Final Capacity 4 | . . . . 4 Final Carried 4 | . . . . 4 Class Distribution -------------------- 100% | Mutant Dominant Class ---------------- Mutant | -10/Materials Mutant | -10/Mines Mutant | -10/Exiles Mutant | -9/Mines Resources | -11 -10 -10 -10 -9 ----------- Run | Scr Mat Min Exi Min Matter Collected 468 | 250 112 24 . 82 Remotely . | . . . . . Salvage Created 362 | . 201 51 . 110 Parts 30 | . 17 5 . 8 Haulers Intercepted . | . . . . . Recyclers Shooed 1 | . 1 . . . Parts Field Recycled . | . . . . . Retrieved Matter . | . . . . . Parts Self-Destructed . | . . . . . Prevented . | . . . . . Kills | -11 -10 -10 -10 -9 ------- Run | Scr Mat Min Exi Min Combat Hostiles Destroyed 8 | . 5 3 . . Guns 8 | . 5 3 . . Classes Destroyed 6 | . 4 . . 2 Worker 1 | . . . . 1 Builder 1 | . 1 . . . Tunneler 1 | . . . . 1 Recycler 2 | . 1 . . 1 Swarmer 6 | . 3 3 . . Grunt 2 | . 2 . . . Best Kill Streak 4 | . 4 3 . 2 Combat Bots Only 3 | . 3 3 . . Max Kills in Single Turn 1 | . 1 1 . 1 Gunslinging . | . . . . . Exploded . | . . . . . Melee . | . . . . . Uniques/NPCs Destroyed . | . . . . . Combat | -11 -10 -10 -10 -9 -------- Run | Scr Mat Min Exi Min Damage Taken 1159 | . 162 66 . 931 Core 331 | . 33 13 . 285 Absorbed by Shields . | . . . . . Core Remaining (%) 100 | 100 . . . . Volleys Fired 37 | . 18 7 . 12 Largest 2 | . 2 2 . 2 Hottest 60 | . 40 40 . 60 Shots Fired 72 | . 36 14 . 22 Gun 70 | . 36 14 . 20 Cannon . | . . . . . Launcher 2 | . . . . 2 Special . | . . . . . Kinetic 69 | . 36 14 . 19 Thermal . | . . . . . Explosive 2 | . . . . 2 Electromagnetic 1 | . . . . 1 Robot Hit Streak 11 | . 5 11 . 9 Robot Miss Streak 3 | . 2 3 . 2 Penetration Max . | . . . . . Secondary Targets . | . . . . . Shots Hit Robots 43 | . 22 8 . 13 Core Hits 25 | . 12 3 . 10 Critical Hits . | . . . . . Critical Kills . | . . . . . Critical Parts Destroyed . | . . . . . Melee Attacks . | . . . . . Impact . | . . . . . Slashing . | . . . . . Piercing . | . . . . . Sneak Attacks . | . . . . . Combat Hostiles . | . . . . . Follow-up Attacks . | . . . . . Damage Inflicted 479 | . 207 85 . 187 Guns 438 | . 207 85 . 146 Cannons . | . . . . . Explosions 41 | . . . . 41 Melee . | . . . . . Ramming . | . . . . . Kinetic 438 | . 207 85 . 146 Thermal . | . . . . . Explosive 41 | . . . . 41 Electromagnetic . | . . . . . Impact . | . . . . . Slashing . | . . . . . Piercing . | . . . . . Highest Corruption . | . . . . . Average Corruption . | . . . . . Corruption Purged . | . . . . . Overload Shots . | . . . . . Overflow Damage . | . . . . . Projectiles . | . . . . . Explosions . | . . . . . Melee . | . . . . . Knockbacks . | . . . . . Impact . | . . . . . Kinetic . | . . . . . Secondary . | . . . . . Self-Inflicted Damage . | . . . . . Shots . | . . . . . Rammed . | . . . . . Targets Rammed . | . . . . . Kicked . | . . . . . Crushed . | . . . . . Highest Temperature 20 | . 19 12 . 20 Average Temperature 7 | . 8 5 . 7 Received Heat Transfer 24 | . 24 . . . Siege Activations . | . . . . . Robots Corrupted . | . . . . . Combat Hostiles . | . . . . . Parts Fried . | . . . . . Impact Corruptions . | . . . . . Robots Melted . | . . . . . Combat Hostiles . | . . . . . Parts Melted . | . . . . . Heat Transferred . | . . . . . Parts Sabotaged . | . . . . . Parts Stolen . | . . . . . Parts Stripped . | . . . . . Power Chain Reactions . | . . . . . Missiles Intercepted . | . . . . . Alert | -11 -10 -10 -10 -9 ------- Run | Scr Mat Min Exi Min Peak Influence 151 | . 151 143 . 15 Average Influence 59 | . 93 130 . 4 Maximum Alert Level . | . . . . . Low Security (%) 100 | . . . . . Level 1 . | . . . . . Level 2 . | . . . . . Level 3 . | . . . . . Level 4 . | . . . . . Level 5 . | . . . . . High Security . | . . . . . Max Security . | . . . . . Squads Dispatched 1 | . 1 . . . Investigation . | . . . . . Extermination . | . . . . . Reinforcement 1 | . 1 . . . Assault . | . . . . . Garrison . | . . . . . Intercept . | . . . . . Construction Impeded . | . . . . . Haulers Reinforced . | . . . . . Stealth | -11 -10 -10 -10 -9 --------- Run | Scr Mat Min Exi Min Distress Signals 1 | . 1 . . . Communications Jammed . | . . . . . Distress Signals . | . . . . . Times Spotted 12 | . 7 3 . 2 Peak Tracking Total 4 | . 4 3 . 2 Tactical Retreats . | . . . . . Traps | -11 -10 -10 -10 -9 ------- Run | Scr Mat Min Exi Min Traps Triggered . | . . . . . Indirectly . | . . . . . Trap Hack Attempts . | . . . . . Triggered . | . . . . . Disarmed . | . . . . . Reprogrammed . | . . . . . Reused . | . . . . . Traps Extracted . | . . . . . Installed . | . . . . . Triggered . | . . . . . Machines | -11 -10 -10 -10 -9 ---------- Run | Scr Mat Min Exi Min Machines Disabled . | . . . . . Max in Single Turn . | . . . . . Machines Sabotaged . | . . . . . Garrisons Compromised . | . . . . . Overloaded Fab Kills . | . . . . . Fab Network Shutdowns . | . . . . . Hacking | -11 -10 -10 -10 -9 --------- Run | Scr Mat Min Exi Min Machines Accessed 4 | . 2 1 1 . Terminals 3 | . 2 1 . . Fabricators . | . . . . . Repair Stations . | . . . . . Recycling Units . | . . . . . Scanalyzers . | . . . . . Garrison Access . | . . . . . Total Hacks 16 | . 6 2 8 . Successful 13 | . 3 2 8 . Failed 3 | . 3 . . . Catastrophic 3 | . 3 . . . Database Lockouts . | . . . . . Manual 9 | . 8 1 . . Terminals 8 | . 6 2 . . Fabricators . | . . . . . Repair Stations . | . . . . . Recycling Units . | . . . . . Scanalyzers . | . . . . . Garrison Access . | . . . . . Terminal Hacks 13 | . 3 2 8 . Record 8 | . . . 8 . Terminal Index 1 | . 1 . . . Locate Traps 1 | . 1 . . . Reprogram Traps 1 | . . 1 . . Reinforcement Status 1 | . 1 . . . Zone Layout 1 | . . 1 . . Fabricator Hacks . | . . . . . Repair Station Hacks . | . . . . . Recycling Unit Hacks . | . . . . . Scanalyzer . | . . . . . Garrison Access Hacks . | . . . . . Unauthorized Hacks . | . . . . . Terminals . | . . . . . Fabricators . | . . . . . Repair Stations . | . . . . . Recycling Units . | . . . . . Scanalyzers . | . . . . . Garrison Access . | . . . . . Data Cores Recovered . | . . . . . Used . | . . . . . Hacking Detections 3 | . 2 1 . . Full Trace Events . | . . . . . Feedback Events . | . . . . . Feedback Blocked . | . . . . . Robot Schematics Acquired . | . . . . . Robots Built . | . . . . . Matter . | . . . . . Time . | . . . . . Total Robot Build Rating . | . . . . . Part Schematics Acquired . | . . . . . Parts Built . | . . . . . Matter . | . . . . . Time . | . . . . . Total Part Build Rating . | . . . . . Parts Repaired . | . . . . . Time . | . . . . . Parts Recycled . | . . . . . Recycled Matter . | . . . . . Retrieved Matter . | . . . . . Retrieved Components . | . . . . . Parts Scanalyzed . | . . . . . Part Schematics Acquired . | . . . . . Parts Damaged . | . . . . . Bothacking | -11 -10 -10 -10 -9 ------------ Run | Scr Mat Min Exi Min Used RIF Installer . | . . . . . Robots Hacked . | . . . . . Non-combat . | . . . . . Combat . | . . . . . Robot Hacks Applied . | . . . . . Relay Couplers Released . | . . . . . Robots Rewired . | . . . . . Allies Hacked . | . . . . . Hacks Repelled . | . . . . . Allies | -11 -10 -10 -10 -9 -------- Run | Scr Mat Min Exi Min Total Allies . | . . . . . Largest Group . | . . . . . Highest-Rated Group . | . . . . . Highest-Rated Ally . | . . . . . Total Orders . | . . . . . Ally Attacks . | . . . . . Total Damage . | . . . . . Kills . | . . . . . Allies Corrupted . | . . . . . Allies Melted . | . . . . . Intel | -11 -10 -10 -10 -9 ------- Run | Scr Mat Min Exi Min Robot Analysis Total . | . . . . . Derelict Logs Recovered 1 | . . 1 . . Drone Launches . | . . . . . Drone Recoveries . | . . . . . Exploration | -11 -10 -10 -10 -9 ------------- Run | Scr Mat Min Exi Min Turns Passed 1350 | 83 246 181 549 291 Spaces Moved 961 | 60 126 132 448 195 Core 5 | 5 . . . . Treads . | . . . . . Legs 956 | 55 126 132 448 195 Wheels . | . . . . . Hover . | . . . . . Flight . | . . . . . Fastest Speed 50 | 50 120 120 120 120 Average Speed 120 | 114 120 120 121 120 Slowest Speed 150 | 120 120 120 150 120 Overloaded Moves . | . . . . . Propulsion Burnouts . | . . . . . Robots Hopped . | . . . . . Cave-ins Triggered 1 | . . . . 1 Exploration Rate (%) 39 | 4 25 36 76 55 Regions Visited 4 Branch Regions 3 Pre-discovered Areas 2 | . . . 1 1 Known Exits Taken . | . . . . . Unknown Exits Taken 4 | 1 1 1 1 . Scrap Searched 1 | . . . . 1 Spaces Dug . | . . . . . Terrain Destroyed 10 | . . . . 10 Melee . | . . . . . Projectile . | . . . . . AOE 10 | . . . . 10 Actions | -11 -10 -10 -10 -9 --------- Run | Scr Mat Min Exi Min Total 1093 | 71 191 142 455 234 Wait 54 | . 32 2 . 20 Move 957 | 59 125 131 447 195 Hop . | . . . . . Pick Up 16 | 6 6 . 2 2 Fast Attach 10 | 6 2 . 2 . Attach 2 | . . . . 2 Detach . | . . . . . Swap 4 | . 1 1 1 1 Drop 13 | . 7 1 3 2 Fire 37 | . 18 7 . 12 Melee . | . . . . . Ram . | . . . . . Kick . | . . . . . Crush . | . . . . . Escape Stasis . | . . . . . Rewire . | . . . . . Trap . | . . . . . Miscellaneous . | . . . . . Route ------- -11/Scrapyard -10/Materials -10/Mines -10/Exiles -9/Mines (discovered 1 exit: [*Mat]) History --------- Turn | Location | Event 19 | -11/Scrapyard | Discovered new exit (range 16) 84 | -11/Scrapyard | Entered Materials 215 | -10/Materials | Discovered new exit (range 5) 318 | -10/Materials | Build established: Mutant 330 | -10/Materials | Entered Mines 472 | -10/Mines | Learned location of 1 exit from Materials 505 | -10/Mines | Deemed a non-threat by the Exiles lab entrance 505 | -10/Mines | Discovered new exit (range 5) 511 | -10/Mines | Entered Exiles 548 | -10/Exiles | Met 8R-AWN 567 | -10/Exiles | Met EX-HEX 613 | -10/Exiles | Met EX-DEC 642 | -10/Exiles | Learned location of Zion (-7) 724 | -10/Exiles | Visited The Gauntlet 973 | -10/Exiles | Discovered new exit (range 11) 1060 | -10/Exiles | Entered Mines 1306 | -9/Mines | Learned location of Storage (-8) 1307 | -9/Mines | Discovered new exit (range 7) 1326 | -9/Mines | Assembled infested the area 1331 | -9/Mines | Assisted by a Guerilla fighting off Assembled 1351 | -9/Mines | Core integrity fell below 50% 1352 | -9/Mines | Crushed by falling debris 1352 | -9/Mines | Smashed by cave-in Last Messages --------------- 01337_ Assault Rifle destroyed. 01338_ IJ-251(h): "I'll hold them off! Go on ahead or try to find another way!" 01338_ HV Slug penetrates Wall. 01339_ U-05 Engineer builds a Wall. 01339_ U-05 Engineer destroyed. 01341_ K-01 Serf destroyed. 01343_ The unstable cave ceiling collapses. 01343_ IJ-251(h) destroyed. 01347_ Aluminum Leg destroyed. 01348_ Rocket Launcher destroyed. 01348_ U-05 Engineer builds a Wall. 01350_ Lgt. Armor Plating destroyed. 01351_ The unstable cave ceiling collapses. 01352_ Crushed by falling debris. 01352_ Lgt. Assault Rifle destroyed. 01352_ System corrupted by crushing effect (+2). 01352_ Sml. Storage Unit destroyed. 01352_ System corrupted by crushing effect (+5). [Achievement: 5k Club] Map ----- +----------------------------------------------------+ | ??????????????????????????????????? | | ??????????????????????????????????? | | ??????????????????????????????????? | | ??????????????????????????????????? | | ??????????????????????????????????? | | ??????????????????????????????????? | | ??????????????????????????????????? | | ??????????????????????????????????? | | ??????????????????????????????????? | | ??????????????????????????????????? | | ??????????????????????????????????? | | ??????????????????????????????????# | | ??????????????????????????????????# | | ??????????????????????????????????# | | ??????????????????????????????????? | | ??????????????????????????????????? | | ??????????????????????????????????? | | ??????????????????????????????????? | | ?????########?????????????????????? | | ????## ###???????????????????? | | ????# %????????????????????# | | ????# ##?##??????????? #### | | ????# ## ##?????????? | | ????# #????????? | | ????# ####??????# | | ????# @ ##??????????# | | ?????# # ; #????????## | | ?????# #???????????? | | ?????## d d ##???????????? | | ??????# % ##????????????? | | ??????# #????????????? | | ??????####### ##????????????? | | ???????????###### ######?????????? | | ??????????## ###u #????????## | | ?????????## #### ######???# | | ?????????# #??# !%!#???# | | ?????????# #####??######=#???# | | ?????????# ##??????????#!#???# | | ?????????# #??????????#%#???# | | ?????????## < #?????????#*#???# | | ??????????# #?????????#|#???#% | | ??????????## #?????????# #??## | | ????###????## ##???????### #### | | ????# ##???#####???????## | | ????# ##????????####### | | ????# ###?????## | | ?????# ##????# | | ??????# ##??## #### | | ?????## #### ##??# | | ?????# ####???# | +----------------------------------------------------+ Best States ------------- Heat Dissipation 25 Energy Generation 10 Energy Capacity 250 Matter Stores 300 Matter Capacity 300 Sight Range 16 Terrain Scan Density 10 Armor Coverage 150 Evasion (%) 40 Item Schematics ----------------- None Robot Schematics ------------------ None Fabricated ------------ Nothing Alien Tech Used ----------------- None Achievements -------------- 5k Club Challenges ------------ None Game ------ Seed ReclamationHardcellCasing Manual? 0 Play Time 00:21:07 Cumulative 8.9 hours Start 2019.10.26 @ 20:32:14 End 2019.10.26 @ 20:50:16 Sessions 1 Manual Loads 0 Difficulty Rogue Special Mode None Game No. 18 Rogue 18 Adventurer 0 Explorer 0 Win Type - Total 0 Types 0/0/0/0/0/0/0 Lore% 4 Gallery% 17 Achievement% 12 Wizard Run 0 Options --------- ASCII 0 Keyboard 1 Movement Numpad Keybinds 0 Fullscreen 1 Font 18/SmallcapsGlow Map View 76x50 Tactical HUD 1 Map Filters NONE Filters NONE Steam 1 RUN: 81c0665f-bd65-4f0a-b312-d77157b7bb90